[Event "*** Titled Tuesday Blitz"]
[Site "Chess.com"]
[Date "2021.04.06"]
[Round "3"]
[White "retropwr"]
[Black "esrosenberg"]
[Result "1-0"]
[WhiteElo "2432"]
[BlackElo "2210"]
[TimeControl "180+1"]
[EndTime "10:27:55 PDT"]
[Termination "retropwr won on time"]

1. c4 {[%clk 0:03:00.9]} 1... e5 {[%clk 0:02:59.7]} 2. Nc3 {[%clk 0:03:00.7]}
2... Bb4 {[%clk 0:03:00.2]} 3. Nd5 {[%clk 0:03:00.7]} 3... Be7 {[%clk
0:03:00.7]} 4. d4 {[%clk 0:02:59.2]} 4... c6 {[%clk 0:02:55.7]} 5. Nxe7 {[%clk
0:02:54.9]} 5... Qxe7 {[%clk 0:02:56.6]} 6. e4 {[%clk 0:02:51.4]} 6... h6 {[%clk
0:02:37.6]} 7. Ne2 {[%clk 0:02:46.9]} 7... Nf6 {[%clk 0:02:33.3]} 8. Nc3 {[%clk
0:02:41.7]} 8... Na6 {[%clk 0:02:16.7]} 9. f3 {[%clk 0:02:37.7]} 9... exd4
{[%clk 0:02:02.4]} 10. Qxd4 {[%clk 0:02:37.1]} 10... Nc5 {[%clk 0:01:51.9]} 11.
Be3 {[%clk 0:02:27.3]} 11... d6 {[%clk 0:01:45.2]} 12. O-O-O {[%clk 0:02:25.5]}
12... O-O {[%clk 0:01:10.6]} 13. Qxd6 {[%clk 0:02:20.8]} 13... Qxd6 {[%clk
0:01:11.5]} 14. Rxd6 {[%clk 0:02:20.5]} 14... Ne6 {[%clk 0:01:11.9]} 15. Be2
{[%clk 0:02:13.7]} 15... Ne8 {[%clk 0:01:03.9]} 16. Rd2 {[%clk 0:02:11.5]} 16...
b6 {[%clk 0:01:02.8]} 17. Rhd1 {[%clk 0:02:08.3]} 17... Ba6 {[%clk 0:01:01.8]}
18. b3 {[%clk 0:02:05]} 18... Nf6 {[%clk 0:00:59.5]} 19. f4 {[%clk 0:02:00.7]}
19... Rfe8 {[%clk 0:00:54.7]} 20. e5 {[%clk 0:01:58.4]} 20... Nh7 {[%clk
0:00:44.3]} 21. Bf3 {[%clk 0:01:58.6]} 21... Rac8 {[%clk 0:00:42.3]} 22. Ne4
{[%clk 0:01:58.7]} 22... Rf8 {[%clk 0:00:32.3]} 23. c5 {[%clk 0:01:46.7]} 23...
Nxc5 {[%clk 0:00:29.1]} 24. Nxc5 {[%clk 0:01:46.6]} 24... bxc5 {[%clk
0:00:29.4]} 25. Bxc5 {[%clk 0:01:46.7]} 25... Rfe8 {[%clk 0:00:28.7]} 26. Bxa7
{[%clk 0:01:46.6]} 26... Nf8 {[%clk 0:00:27.2]} 27. Rd6 {[%clk 0:01:38.8]} 27...
Ne6 {[%clk 0:00:25.4]} 28. Be3 {[%clk 0:01:36.5]} 28... Bb5 {[%clk 0:00:22.7]}
29. a4 {[%clk 0:01:35.8]} 29... Ba6 {[%clk 0:00:22]} 30. Kb2 {[%clk 0:01:35.5]}
30... g5 {[%clk 0:00:20.2]} 31. g3 {[%clk 0:01:32.1]} 31... gxf4 {[%clk
0:00:19.7]} 32. gxf4 {[%clk 0:01:32.4]} 32... Kg7 {[%clk 0:00:18.7]} 33. Rxc6
{[%clk 0:01:31.8]} 33... Rxc6 {[%clk 0:00:16.6]} 34. Bxc6 {[%clk 0:01:32.7]}
34... Rb8 {[%clk 0:00:15.7]} 35. Bd5 {[%clk 0:01:29.1]} 35... Be2 {[%clk
0:00:13]} 36. Rg1+ {[%clk 0:01:28.2]} 36... Kh8 {[%clk 0:00:11.6]} 37. f5 {[%clk
0:01:28.4]} 37... Ng5 {[%clk 0:00:11]} 38. Bxg5 {[%clk 0:01:27.3]} 38... hxg5
{[%clk 0:00:11.9]} 39. Rxg5 {[%clk 0:01:27.4]} 39... Bd1 {[%clk 0:00:11]} 40.
Bxf7 {[%clk 0:01:26.8]} 40... Kh7 {[%clk 0:00:09.3]} 41. Bc4 {[%clk 0:01:23.6]}
41... Kh6 {[%clk 0:00:09.1]} 42. Rg3 {[%clk 0:01:23.5]} 42... Kh5 {[%clk
0:00:08.2]} 43. f6 {[%clk 0:01:23.8]} 43... Kh4 {[%clk 0:00:08]} 44. e6 {[%clk
0:01:24.2]} 44... Bh5 {[%clk 0:00:06.1]} 45. f7 {[%clk 0:01:23.5]} 45... Rf8
{[%clk 0:00:04.3]} 46. e7 {[%clk 0:01:22.7]} 46... Bxf7 {[%clk 0:00:02.5]} 47.
exf8=Q {[%clk 0:01:20.6]} 47... Bh5 {[%clk 0:00:01.4]} 48. Qf4+ {[%clk
0:01:19.3]} 1-0

[Event "*** Titled Tuesday Blitz"]
[Site "Chess.com"]
[Date "2021.04.06"]
[Round "3"]
[White "ARMQUEEN"]
[Black "Klavdia_Nik"]
[Result "1-0"]
[WhiteElo "2311"]
[BlackElo "2025"]
[TimeControl "180+1"]
[EndTime "10:27:57 PDT"]
[Termination "ARMQUEEN won on time"]

1. e4 {[%clk 0:02:42.8]} 1... g6 {[%clk 0:02:52.2]} 2. d4 {[%clk 0:02:41.9]}
2... Bg7 {[%clk 0:02:52.8]} 3. Nc3 {[%clk 0:02:42.6]} 3... d6 {[%clk 0:02:52.9]}
4. f4 {[%clk 0:02:42.8]} 4... c6 {[%clk 0:02:50.7]} 5. Nf3 {[%clk 0:02:42.9]}
5... Nf6 {[%clk 0:02:50.7]} 6. Bd3 {[%clk 0:02:42.3]} 6... O-O {[%clk 0:02:39]}
7. O-O {[%clk 0:02:41.5]} 7... b5 {[%clk 0:02:33.9]} 8. a3 {[%clk 0:02:39.9]}
8... Bb7 {[%clk 0:02:32.2]} 9. e5 {[%clk 0:02:38.6]} 9... Ne8 {[%clk 0:02:28.5]}
10. Qe2 {[%clk 0:02:37.1]} 10... Nc7 {[%clk 0:02:24.9]} 11. Ne4 {[%clk
0:02:34.6]} 11... a5 {[%clk 0:02:14.2]} 12. c3 {[%clk 0:02:34]} 12... Nd5 {[%clk
0:02:08.9]} 13. Ng3 {[%clk 0:02:32.4]} 13... e6 {[%clk 0:02:05.5]} 14. Bd2
{[%clk 0:02:29.4]} 14... Nd7 {[%clk 0:02:02.8]} 15. h4 {[%clk 0:02:27.5]} 15...
h5 {[%clk 0:01:57.2]} 16. Nxh5 {[%clk 0:02:18.1]} 16... gxh5 {[%clk 0:01:52.2]}
17. Ng5 {[%clk 0:02:18.1]} 17... f5 {[%clk 0:01:45.2]} 18. exf6 {[%clk
0:01:43.2]} 18... Rxf6 {[%clk 0:01:38]} 19. Qxh5 {[%clk 0:01:38.8]} 19... Nf8
{[%clk 0:01:33.9]} 20. Rae1 {[%clk 0:01:33.8]} 20... Qe8 {[%clk 0:01:24]} 21.
Bh7+ {[%clk 0:01:24.7]} 21... Nxh7 {[%clk 0:01:21.9]} 22. Qxh7+ {[%clk
0:01:24.8]} 22... Kf8 {[%clk 0:01:21.9]} 23. Qe4 {[%clk 0:01:13.2]} 23... Bc8
{[%clk 0:00:37.2]} 24. f5 {[%clk 0:01:06.6]} 24... Qh5 {[%clk 0:00:20.3]} 25.
fxe6 {[%clk 0:01:04.2]} 25... Ke7 {[%clk 0:00:19.2]} 26. Nh7 {[%clk 0:00:48.7]}
26... Rxf1+ {[%clk 0:00:16.9]} 27. Kxf1 {[%clk 0:00:47.7]} 27... Nf6 {[%clk
0:00:01.9]} 28. Bg5 {[%clk 0:00:44]} 1-0

[Event "*** Titled Tuesday Blitz"]
[Site "Chess.com"]
[Date "2021.04.06"]
[Round "3"]
[White "AlexTriapishko"]
[Black "Tsyhanchuk_Stanislav"]
[Result "1-0"]
[WhiteElo "2817"]
[BlackElo "2472"]
[TimeControl "180+1"]
[EndTime "10:27:58 PDT"]
[Termination "AlexTriapishko won on time"]

1. Nf3 {[%clk 0:02:44.2]} 1... c5 {[%clk 0:02:59.2]} 2. e3 {[%clk 0:01:23.7]}
2... Nf6 {[%clk 0:02:56.7]} 3. d4 {[%clk 0:01:24.6]} 3... g6 {[%clk 0:02:55.1]}
4. Be2 {[%clk 0:01:21.1]} 4... Bg7 {[%clk 0:02:52.9]} 5. O-O {[%clk 0:01:21.7]}
5... O-O {[%clk 0:02:53.2]} 6. dxc5 {[%clk 0:01:22.1]} 6... Na6 {[%clk
0:02:40.2]} 7. Bxa6 {[%clk 0:01:20.2]} 7... bxa6 {[%clk 0:02:41.1]} 8. Bd2
{[%clk 0:01:13.9]} 8... Qc7 {[%clk 0:02:36.4]} 9. Bc3 {[%clk 0:01:08.7]} 9...
Qxc5 {[%clk 0:02:33.7]} 10. Qd4 {[%clk 0:01:08.8]} 10... Qc7 {[%clk 0:02:25.7]}
11. Nbd2 {[%clk 0:00:58.1]} 11... d6 {[%clk 0:02:23.5]} 12. Qc4 {[%clk
0:00:53.5]} 12... Qxc4 {[%clk 0:02:13.1]} 13. Nxc4 {[%clk 0:00:54.4]} 13... Rb8
{[%clk 0:02:13.3]} 14. Na5 {[%clk 0:00:44.7]} 14... Bd7 {[%clk 0:02:07.4]} 15.
Bd4 {[%clk 0:00:30.8]} 15... Ne4 {[%clk 0:01:36.1]} 16. Bxg7 {[%clk 0:00:28.7]}
16... Kxg7 {[%clk 0:01:34.5]} 17. b3 {[%clk 0:00:29.4]} 17... Rfc8 {[%clk
0:01:23.3]} 18. c4 {[%clk 0:00:28.9]} 18... Rc5 {[%clk 0:01:04.5]} 19. b4 {[%clk
0:00:29.4]} 19... Rxb4 {[%clk 0:00:58.9]} 20. Nb3 {[%clk 0:00:30.3]} 20... Rcxc4
{[%clk 0:00:53.7]} 21. h3 {[%clk 0:00:30.9]} 21... Rc2 {[%clk 0:00:47.2]} 22.
Nfd4 {[%clk 0:00:30.5]} 22... Rb2 {[%clk 0:00:41.2]} 23. Rfb1 {[%clk 0:00:29.1]}
1-0

[Event "*** Titled Tuesday Blitz"]
[Site "Chess.com"]
[Date "2021.04.06"]
[Round "3"]
[White "elvidirris"]
[Black "ural58"]
[Result "0-1"]
[WhiteElo "2063"]
[BlackElo "2483"]
[TimeControl "180+1"]
[EndTime "10:27:59 PDT"]
[Termination "ural58 won by resignation"]

1. e4 {[%clk 0:03:00.9]} 1... d5 {[%clk 0:02:57.8]} 2. exd5 {[%clk 0:03:00]}
2... Qxd5 {[%clk 0:02:57.5]} 3. Nc3 {[%clk 0:02:59.4]} 3... Qa5 {[%clk
0:02:57.4]} 4. d4 {[%clk 0:02:59]} 4... Nf6 {[%clk 0:02:57.9]} 5. Bc4 {[%clk
0:02:58.6]} 5... Bg4 {[%clk 0:02:57.5]} 6. f3 {[%clk 0:02:57.8]} 6... Be6 {[%clk
0:02:57.9]} 7. Bxe6 {[%clk 0:02:53.8]} 7... fxe6 {[%clk 0:02:58.8]} 8. Qe2
{[%clk 0:02:53.2]} 8... Nc6 {[%clk 0:02:59]} 9. Be3 {[%clk 0:02:37.8]} 9... Nd5
{[%clk 0:02:58.8]} 10. Bd2 {[%clk 0:02:17.9]} 10... Nxd4 {[%clk 0:02:47.3]} 11.
Qe4 {[%clk 0:02:11]} 11... Nb4 {[%clk 0:02:38.4]} 12. Rc1 {[%clk 0:01:24.8]}
12... O-O-O {[%clk 0:02:36.4]} 13. a3 {[%clk 0:01:17.3]} 13... Nbc6 {[%clk
0:02:09.8]} 14. Nge2 {[%clk 0:01:10.2]} 14... Qf5 {[%clk 0:02:08.2]} 15. O-O
{[%clk 0:00:53.1]} 15... g6 {[%clk 0:02:05.2]} 16. Nxd4 {[%clk 0:00:40]} 16...
Rxd4 {[%clk 0:02:03.2]} 17. Qe2 {[%clk 0:00:31.6]} 17... Bg7 {[%clk 0:02:03]}
18. Be3 {[%clk 0:00:30.6]} 18... Rd7 {[%clk 0:01:50.7]} 19. Ne4 {[%clk
0:00:30.1]} 19... Rhd8 {[%clk 0:01:48.3]} 20. Nc5 {[%clk 0:00:27]} 20... Nd4
{[%clk 0:01:42.7]} 21. Qc4 {[%clk 0:00:19.1]} 21... Rd5 {[%clk 0:01:35.3]} 22.
Qb4 {[%clk 0:00:16.9]} 22... Rxc5 {[%clk 0:01:31.6]} 23. Bxd4 {[%clk 0:00:15.2]}
23... Rxd4 {[%clk 0:01:30.1]} 24. Qe1 {[%clk 0:00:13.4]} 24... Rcd5 {[%clk
0:01:11.5]} 25. Rf2 {[%clk 0:00:11.8]} 25... Bf6 {[%clk 0:01:03.7]} 26. Re2
{[%clk 0:00:09.8]} 26... Kd7 {[%clk 0:01:03.4]} 27. c3 {[%clk 0:00:08.7]} 27...
Rd3 {[%clk 0:01:02.6]} 28. Re4 {[%clk 0:00:07.3]} 28... Bg5 {[%clk 0:00:57.3]}
29. Rb1 {[%clk 0:00:05.3]} 29... Rd2 {[%clk 0:00:53.5]} 30. h4 {[%clk
0:00:04.9]} 30... Bh6 {[%clk 0:00:47.6]} 31. Re2 {[%clk 0:00:04.6]} 31... Rxe2
{[%clk 0:00:45.7]} 32. Qxe2 {[%clk 0:00:05.5]} 32... Qxb1+ {[%clk 0:00:45.7]}
0-1

[Event "*** Titled Tuesday Blitz"]
[Site "Chess.com"]
[Date "2021.04.06"]
[Round "3"]
[White "jonaszmb"]
[Black "DarZay"]
[Result "1-0"]
[WhiteElo "2498"]
[BlackElo "2185"]
[TimeControl "180+1"]
[EndTime "10:28:01 PDT"]
[Termination "jonaszmb won by resignation"]

1. Nf3 {[%clk 0:03:00.9]} 1... Nf6 {[%clk 0:02:59.1]} 2. c4 {[%clk 0:03:00.8]}
2... e6 {[%clk 0:02:58.8]} 3. b3 {[%clk 0:02:59.5]} 3... d5 {[%clk 0:02:57.9]}
4. Bb2 {[%clk 0:02:59.6]} 4... c5 {[%clk 0:02:57.3]} 5. e3 {[%clk 0:02:59.8]}
5... Be7 {[%clk 0:02:57]} 6. cxd5 {[%clk 0:02:44.7]} 6... exd5 {[%clk
0:02:56.5]} 7. d4 {[%clk 0:02:45.3]} 7... O-O {[%clk 0:02:51.3]} 8. dxc5 {[%clk
0:02:42.9]} 8... Bxc5 {[%clk 0:02:51]} 9. Nbd2 {[%clk 0:02:43.1]} 9... Ne4
{[%clk 0:02:50.2]} 10. Rc1 {[%clk 0:02:37.3]} 10... b6 {[%clk 0:02:46.3]} 11.
Bd3 {[%clk 0:02:29.5]} 11... f5 {[%clk 0:02:31.9]} 12. O-O {[%clk 0:02:27.4]}
12... Bb7 {[%clk 0:02:30.7]} 13. a3 {[%clk 0:02:21.1]} 13... Nd7 {[%clk
0:02:26.9]} 14. b4 {[%clk 0:02:21.1]} 14... Bd6 {[%clk 0:02:26.1]} 15. Nb3
{[%clk 0:02:19.8]} 15... Ng5 {[%clk 0:02:23.3]} 16. Nbd4 {[%clk 0:02:10.9]}
16... Ne5 {[%clk 0:02:11]} 17. Nxe5 {[%clk 0:01:44.8]} 17... Bxe5 {[%clk
0:02:07.7]} 18. f4 {[%clk 0:01:44.9]} 18... Bxd4 {[%clk 0:02:05.3]} 19. Bxd4
{[%clk 0:01:45.8]} 19... Ne4 {[%clk 0:02:04.4]} 20. Bxe4 {[%clk 0:01:34.4]}
20... dxe4 {[%clk 0:02:02.8]} 21. Qb3+ {[%clk 0:01:28.7]} 21... Bd5 {[%clk
0:01:59.9]} 22. Qc3 {[%clk 0:01:11]} 22... Rc8 {[%clk 0:01:58.7]} 23. Qb2 {[%clk
0:01:07.9]} 23... Qe7 {[%clk 0:01:50.1]} 24. h3 {[%clk 0:01:07.2]} 24... Bc4
{[%clk 0:01:48.4]} 25. Rfd1 {[%clk 0:01:03.8]} 25... Bd3 {[%clk 0:01:48.1]} 26.
Qb3+ {[%clk 0:01:00.5]} 26... Kh8 {[%clk 0:01:45.9]} 27. Kh2 {[%clk 0:00:53.5]}
27... b5 {[%clk 0:01:41]} 28. Bc5 {[%clk 0:00:45.7]} 28... Rxc5 {[%clk
0:01:28.9]} 29. Rxc5 {[%clk 0:00:46.6]} 29... h5 {[%clk 0:01:23.9]} 30. Qc3
{[%clk 0:00:44.4]} 30... Qe6 {[%clk 0:01:10.5]} 31. Rc6 {[%clk 0:00:37.3]} 31...
Qa2 {[%clk 0:01:06.1]} 32. Rh6+ {[%clk 0:00:31.3]} 32... Kg8 {[%clk 0:01:03.5]}
33. Rxh5 {[%clk 0:00:32.2]} 33... Rf6 {[%clk 0:00:38.8]} 34. Rg5 {[%clk
0:00:31.3]} 34... Qe2 {[%clk 0:00:28.3]} 35. Qxf6 {[%clk 0:00:29.5]} 1-0

[Event "*** Titled Tuesday Blitz"]
[Site "Chess.com"]
[Date "2021.04.06"]
[Round "3"]
[White "ecwinslow"]
[Black "beautroll"]
[Result "0-1"]
[WhiteElo "2205"]
[BlackElo "2458"]
[TimeControl "180+1"]
[EndTime "10:28:01 PDT"]
[Termination "beautroll won on time"]

1. e4 {[%clk 0:03:00.9]} 1... c5 {[%clk 0:02:59.8]} 2. Nf3 {[%clk 0:03:00.5]}
2... d6 {[%clk 0:02:59.5]} 3. d4 {[%clk 0:03:01]} 3... cxd4 {[%clk 0:03:00]} 4.
Nxd4 {[%clk 0:03:01.7]} 4... Nf6 {[%clk 0:03:00.2]} 5. Nc3 {[%clk 0:03:02.4]}
5... a6 {[%clk 0:03:00.6]} 6. Bg5 {[%clk 0:03:01.4]} 6... Nbd7 {[%clk
0:02:59.9]} 7. Qe2 {[%clk 0:02:58.9]} 7... Qa5 {[%clk 0:02:53]} 8. Bd2 {[%clk
0:02:48.2]} 8... Qb6 {[%clk 0:02:50.5]} 9. Nb3 {[%clk 0:02:46.6]} 9... e6 {[%clk
0:02:48.9]} 10. g4 {[%clk 0:02:34.6]} 10... h6 {[%clk 0:02:36.9]} 11. h4 {[%clk
0:02:31.7]} 11... Be7 {[%clk 0:02:34.3]} 12. O-O-O {[%clk 0:02:30.8]} 12... Qc7
{[%clk 0:02:31.6]} 13. Bh3 {[%clk 0:02:22.1]} 13... Nb6 {[%clk 0:01:59.8]} 14.
g5 {[%clk 0:02:10.8]} 14... hxg5 {[%clk 0:01:54.2]} 15. hxg5 {[%clk 0:02:10.4]}
15... Nh7 {[%clk 0:01:31.5]} 16. g6 {[%clk 0:01:47.9]} 16... fxg6 {[%clk
0:01:29.7]} 17. Nd4 {[%clk 0:01:35.8]} 17... Nf8 {[%clk 0:01:26.5]} 18. Bg4
{[%clk 0:01:17.9]} 18... Rxh1 {[%clk 0:01:09.8]} 19. Rxh1 {[%clk 0:01:16.7]}
19... Nc4 {[%clk 0:01:08.1]} 20. Rh8 {[%clk 0:01:09.4]} 20... Nxd2 {[%clk
0:01:01.6]} 21. Qxd2 {[%clk 0:01:05.2]} 21... Kf7 {[%clk 0:00:54.1]} 22. f4
{[%clk 0:00:31.2]} 22... Bf6 {[%clk 0:00:49.4]} 23. Nce2 {[%clk 0:00:11.5]}
23... b5 {[%clk 0:00:40.3]} 24. Bf3 {[%clk 0:00:09.5]} 24... Bb7 {[%clk
0:00:39]} 25. Kb1 {[%clk 0:00:08.4]} 25... Rc8 {[%clk 0:00:36.1]} 26. c3 {[%clk
0:00:01.2]} 26... Qb6 {[%clk 0:00:33]} 0-1

[Event "*** Titled Tuesday Blitz"]
[Site "Chess.com"]
[Date "2021.04.06"]
[Round "3"]
[White "Dave_ChessMate"]
[Black "Fy_Rakotomaharo"]
[Result "0-1"]
[WhiteElo "2484"]
[BlackElo "2693"]
[TimeControl "180+1"]
[EndTime "10:28:03 PDT"]
[Termination "Fy_Rakotomaharo won on time"]

1. e4 {[%clk 0:03:00.9]} 1... c5 {[%clk 0:03:00]} 2. Nc3 {[%clk 0:03:00.5]} 2...
a6 {[%clk 0:02:59.9]} 3. f4 {[%clk 0:02:58.4]} 3... e6 {[%clk 0:02:52]} 4. Nf3
{[%clk 0:02:58.5]} 4... b5 {[%clk 0:02:50.2]} 5. g3 {[%clk 0:02:58.4]} 5... Bb7
{[%clk 0:02:49.8]} 6. d3 {[%clk 0:02:58]} 6... b4 {[%clk 0:02:49.4]} 7. Ne2
{[%clk 0:02:57.6]} 7... d5 {[%clk 0:02:50]} 8. e5 {[%clk 0:02:57.6]} 8... d4
{[%clk 0:02:49.1]} 9. Bg2 {[%clk 0:02:57.3]} 9... h5 {[%clk 0:02:47.1]} 10. O-O
{[%clk 0:02:56.7]} 10... Nh6 {[%clk 0:02:46.5]} 11. a3 {[%clk 0:02:48.7]} 11...
a5 {[%clk 0:02:42.9]} 12. axb4 {[%clk 0:02:43.8]} 12... axb4 {[%clk 0:02:43.8]}
13. Rxa8 {[%clk 0:02:44.3]} 13... Bxa8 {[%clk 0:02:44.4]} 14. c3 {[%clk
0:02:42.3]} 14... dxc3 {[%clk 0:02:41.6]} 15. bxc3 {[%clk 0:02:43.2]} 15... Be7
{[%clk 0:02:36.9]} 16. h3 {[%clk 0:02:16.3]} 16... O-O {[%clk 0:02:31]} 17. cxb4
{[%clk 0:02:14.6]} 17... cxb4 {[%clk 0:02:30.6]} 18. Be3 {[%clk 0:02:06.4]}
18... Bd5 {[%clk 0:02:19.9]} 19. Ned4 {[%clk 0:01:45.4]} 19... Nc6 {[%clk
0:02:15.5]} 20. Kh2 {[%clk 0:01:26.8]} 20... Nxd4 {[%clk 0:01:46.3]} 21. Nxd4
{[%clk 0:01:24.3]} 21... Bxg2 {[%clk 0:01:47.2]} 22. Kxg2 {[%clk 0:01:25.2]}
22... Qd5+ {[%clk 0:01:47.8]} 23. Qf3 {[%clk 0:01:19.7]} 23... Rd8 {[%clk
0:01:44.5]} 24. Qxd5 {[%clk 0:01:07.8]} 24... Rxd5 {[%clk 0:01:44.2]} 25. Nc6
{[%clk 0:00:59.6]} 25... Nf5 {[%clk 0:01:35.3]} 26. Bf2 {[%clk 0:00:36.2]} 26...
Bf8 {[%clk 0:01:15.7]} 27. Rb1 {[%clk 0:00:30.4]} 27... Rxd3 {[%clk 0:01:06.5]}
28. Nxb4 {[%clk 0:00:28.9]} 28... Rd2 {[%clk 0:01:06.9]} 29. Nc6 {[%clk
0:00:23]} 29... Bc5 {[%clk 0:01:00.3]} 30. Rf1 {[%clk 0:00:05.2]} 30... Ne3+
{[%clk 0:00:59.8]} 31. Kg1 {[%clk 0:00:05.3]} 31... Nxf1 {[%clk 0:00:59.3]} 32.
Bxc5 {[%clk 0:00:03.7]} 32... Nxg3 {[%clk 0:00:55.4]} 33. Be3 {[%clk 0:00:02.1]}
33... Re2 {[%clk 0:00:50.3]} 34. Bf2 {[%clk 0:00:01.7]} 34... h4 {[%clk
0:00:50.7]} 0-1

[Event "*** Titled Tuesday Blitz"]
[Site "Chess.com"]
[Date "2021.04.06"]
[Round "3"]
[White "crazy_but_lazy"]
[Black "albi1999"]
[Result "1-0"]
[WhiteElo "2433"]
[BlackElo "2591"]
[TimeControl "180+1"]
[EndTime "10:28:03 PDT"]
[Termination "crazy_but_lazy won by checkmate"]

1. d4 {[%clk 0:03:00.9]} 1... Nf6 {[%clk 0:02:56.2]} 2. c4 {[%clk 0:03:00.8]}
2... e6 {[%clk 0:02:52.8]} 3. Nf3 {[%clk 0:02:55.2]} 3... d5 {[%clk 0:02:52.9]}
4. g3 {[%clk 0:02:55]} 4... Bb4+ {[%clk 0:02:51]} 5. Nbd2 {[%clk 0:02:53.7]}
5... dxc4 {[%clk 0:02:49.3]} 6. Bg2 {[%clk 0:02:48.5]} 6... b5 {[%clk
0:02:42.8]} 7. O-O {[%clk 0:02:43.8]} 7... O-O {[%clk 0:02:36.7]} 8. a4 {[%clk
0:02:39.1]} 8... c6 {[%clk 0:02:31.3]} 9. Ne1 {[%clk 0:02:18.6]} 9... Nd5 {[%clk
0:02:25.7]} 10. Nc2 {[%clk 0:02:18.2]} 10... Be7 {[%clk 0:02:20.3]} 11. e4
{[%clk 0:02:16.6]} 11... Nf6 {[%clk 0:02:10.2]} 12. g4 {[%clk 0:02:06.6]} 12...
Bb7 {[%clk 0:02:01.1]} 13. e5 {[%clk 0:01:43.8]} 13... Nd5 {[%clk 0:02:00.6]}
14. Ne4 {[%clk 0:01:41.4]} 14... Nd7 {[%clk 0:01:59.7]} 15. g5 {[%clk 0:01:33]}
15... a6 {[%clk 0:01:56.7]} 16. Qh5 {[%clk 0:01:23.9]} 16... Kh8 {[%clk
0:01:52.5]} 17. f4 {[%clk 0:01:01.5]} 17... c5 {[%clk 0:01:50.2]} 18. Rf3 {[%clk
0:00:45]} 18... Rg8 {[%clk 0:01:34.1]} 19. Rh3 {[%clk 0:00:40.5]} 19... Nf8
{[%clk 0:01:34.3]} 20. Qxf7 {[%clk 0:00:30.7]} 20... cxd4 {[%clk 0:01:17.8]} 21.
Nd6 {[%clk 0:00:11]} 21... Bxd6 {[%clk 0:01:15.8]} 22. exd6 {[%clk 0:00:11.3]}
22... Qxd6 {[%clk 0:01:13.2]} 23. Qxb7 {[%clk 0:00:09.8]} 23... Ng6 {[%clk
0:01:08.2]} 24. Bxd5 {[%clk 0:00:07.1]} 24... exd5 {[%clk 0:01:08.4]} 25. axb5
{[%clk 0:00:07.5]} 25... d3 {[%clk 0:01:06]} 26. Nd4 {[%clk 0:00:06.7]} 26...
Rae8 {[%clk 0:01:03.6]} 27. Rxa6 {[%clk 0:00:04.8]} 27... Qc5 {[%clk 0:01:03.4]}
28. Qa7 {[%clk 0:00:04.3]} 28... Qb4 {[%clk 0:01:00.4]} 29. Nf3 {[%clk
0:00:01.6]} 29... Re1+ {[%clk 0:00:52.1]} 30. Kf2 {[%clk 0:00:01.8]} 30... Re2+
{[%clk 0:00:52.2]} 31. Kg3 {[%clk 0:00:02.5]} 31... d2 {[%clk 0:00:46.9]} 32.
Rxg6 {[%clk 0:00:02.9]} 32... d1=Q {[%clk 0:00:44]} 33. Rxh7+ {[%clk 0:00:03.5]}
33... Kxh7 {[%clk 0:00:43.8]} 34. Rh6# {[%clk 0:00:04.4]} 1-0

[Event "*** Titled Tuesday Blitz"]
[Site "Chess.com"]
[Date "2021.04.06"]
[Round "3"]
[White "TigrVShlyape"]
[Black "suyu28"]
[Result "1-0"]
[WhiteElo "2808"]
[BlackElo "2592"]
[TimeControl "180+1"]
[EndTime "10:28:04 PDT"]
[Termination "TigrVShlyape won by resignation"]

1. d4 {[%clk 0:03:00.9]} 1... d5 {[%clk 0:02:59.8]} 2. Nf3 {[%clk 0:02:59.8]}
2... Nf6 {[%clk 0:02:59.7]} 3. Bf4 {[%clk 0:02:57.9]} 3... c5 {[%clk 0:02:59.7]}
4. e3 {[%clk 0:02:57.6]} 4... Nc6 {[%clk 0:02:59.9]} 5. Nbd2 {[%clk 0:02:57.3]}
5... cxd4 {[%clk 0:02:58.6]} 6. exd4 {[%clk 0:02:57.4]} 6... Bg4 {[%clk
0:02:58.6]} 7. c3 {[%clk 0:02:56.8]} 7... e6 {[%clk 0:02:58.9]} 8. Bd3 {[%clk
0:02:53.8]} 8... Bd6 {[%clk 0:02:58.2]} 9. Bg3 {[%clk 0:02:47.8]} 9... O-O
{[%clk 0:02:56.9]} 10. O-O {[%clk 0:02:47.2]} 10... Qc7 {[%clk 0:02:56.8]} 11.
Re1 {[%clk 0:02:44.7]} 11... a6 {[%clk 0:02:54.4]} 12. a4 {[%clk 0:02:43.9]}
12... Rab8 {[%clk 0:02:52.9]} 13. Bxd6 {[%clk 0:02:37.2]} 13... Qxd6 {[%clk
0:02:52.6]} 14. a5 {[%clk 0:02:37.7]} 14... Rfe8 {[%clk 0:02:48.2]} 15. Qa4
{[%clk 0:02:36]} 15... Qc7 {[%clk 0:02:42.6]} 16. Ne5 {[%clk 0:02:33.6]} 16...
Bh5 {[%clk 0:02:34.7]} 17. Nxc6 {[%clk 0:02:31.7]} 17... bxc6 {[%clk 0:02:35.6]}
18. b4 {[%clk 0:02:31.1]} 18... Qb7 {[%clk 0:02:22.6]} 19. Nb3 {[%clk
0:02:17.1]} 19... Nd7 {[%clk 0:02:21.5]} 20. Nc5 {[%clk 0:02:15.9]} 20... Nxc5
{[%clk 0:02:19.8]} 21. bxc5 {[%clk 0:02:16.4]} 21... Bg6 {[%clk 0:02:20.4]} 22.
Rab1 {[%clk 0:02:14]} 22... Qxb1 {[%clk 0:01:24]} 23. Bxb1 {[%clk 0:02:10.6]}
23... Bxb1 {[%clk 0:01:24.1]} 24. Qxc6 {[%clk 0:02:09.9]} 24... Bd3 {[%clk
0:01:24.7]} 25. h4 {[%clk 0:02:07.5]} 25... Bb5 {[%clk 0:01:20.3]} 26. Qd6
{[%clk 0:02:06.8]} 26... Rbd8 {[%clk 0:01:18.2]} 27. Qe5 {[%clk 0:02:06.4]}
27... f6 {[%clk 0:01:17.5]} 28. Qc7 {[%clk 0:01:57.6]} 28... Rd7 {[%clk
0:01:16]} 29. Qb6 {[%clk 0:01:57.7]} 29... e5 {[%clk 0:01:04.2]} 30. c6 {[%clk
0:01:45.1]} 30... Rd6 {[%clk 0:00:45]} 31. Qc5 {[%clk 0:01:43.9]} 31... Rxc6
{[%clk 0:00:45.4]} 32. Qxd5+ {[%clk 0:01:43.5]} 32... Kh8 {[%clk 0:00:45.8]} 33.
dxe5 {[%clk 0:01:43.3]} 33... Rce6 {[%clk 0:00:34.5]} 34. f4 {[%clk 0:01:42.4]}
34... f5 {[%clk 0:00:28.7]} 35. Rd1 {[%clk 0:01:34.5]} 35... Bc6 {[%clk
0:00:28.4]} 36. Qc5 {[%clk 0:01:18.8]} 36... Kg8 {[%clk 0:00:28.1]} 37. Rd6
{[%clk 0:01:16.8]} 37... Be4 {[%clk 0:00:27.3]} 38. Qc4 {[%clk 0:01:14.7]} 38...
Kf7 {[%clk 0:00:27]} 39. Qxa6 {[%clk 0:01:12.8]} 39... Rxd6 {[%clk 0:00:26.9]}
40. Qxd6 {[%clk 0:01:10.9]} 40... Re6 {[%clk 0:00:27.2]} 41. Qb4 {[%clk
0:01:05.4]} 41... Rg6 {[%clk 0:00:25.5]} 42. Qc4+ {[%clk 0:01:02.3]} 42... Kf8
{[%clk 0:00:24.5]} 43. Qc8+ {[%clk 0:01:00.3]} 43... Kf7 {[%clk 0:00:24.2]} 44.
Qd7+ {[%clk 0:00:59.3]} 1-0